fUSD/lending_fUSD_20250213
["ID","MTS","AMOUNT","RATE_DAILY","PERIOD"]
[353014541,1739485953425,-4282.13,0.00015095,2]
[353014542,1739485953437,-1579.29,0.00015095,2]
[353014543,1739485953448,-2262.09,0.00015095,2]
[353014544,1739485953458,-2034.1,0.00015095,2]
[353014545,1739485953468,-4796.16,0.00015095,2]
[353014546,1739485953478,-621.58,0.00015095,2]
[353014547,1739485953487,-4188.27,0.00015095,2]
[353014548,1739485953497,-2900.35,0.00015095,2]
[353014549,1739485953507,-5302.96,0.00015095,2]
[353014550,1739485953517,-3352.12,0.00015095,2]
[353014551,1739485953526,-525.01,0.00015095,2]
[353014552,1739485953535,-2517.29,0.00015095,2]
[353014553,1739485953545,-3510.5,0.00015095,2]
[353014554,1739485953555,-1911.76,0.00015095,2]
[353014555,1739485953564,-3186.25,0.00015095,2]
[353014556,1739485953574,-1411.53,0.00015095,2]
[353014557,1739485953584,-5245.34,0.00015095,2]
[353014558,1739485953594,-4040.71,0.00015095,2]
[353014559,1739485953604,-2434.4,0.00015095,2]
[353014560,1739485953614,-3997.95,0.00015095,2]
[353014561,1739485953624,-797.43,0.00015095,2]
[353014562,1739485953634,-3418.06,0.00015095,2]
[353014563,1739485953644,-3613.39,0.00015095,2]
[353014564,1739485953654,-566.64,0.00015095,2]
[353014565,1739485953664,-8838.73,0.00015095,2]
[353014566,1739485953674,-720.74,0.00015095,2]
[353014567,1739485953686,-624.99,0.00015095,2]
[353014568,1739485953695,-3533.94,0.00015095,2]
[353014569,1739485953706,-3776.32,0.00015095,2]
[353014570,1739485953717,-522.13,0.00015095,2]
[353014571,1739485953727,-4171.69,0.00015095,2]
[353014572,1739485953737,-2767.11,0.00015095,2]
[353014573,1739485953747,-500.0,0.00015095,2]
[353014574,1739485953757,-1300.63,0.00015095,2]
[353014575,1739485953767,-3523.18,0.00015095,2]
[353014576,1739485953777,-4629.45,0.00015095,2]
[353014577,1739485953787,-2317.93,0.00015095,2]
[353014578,1739485953797,-542.74,0.00015095,2]
[353014579,1739485953808,-6501.79,0.00015095,2]
[353014580,1739485953817,-649.96,0.00015095,2]
[353014581,1739485953827,-2852.77,0.00015095,2]
[353014582,1739485953837,-4468.57,0.00015095,2]
[353014583,1739485953847,-773.78,0.00015095,2]
[353014584,1739485953856,-724.47,0.00015095,2]
[353014585,1739485953866,-2513.38,0.00015095,2]
[353014586,1739485953876,-4071.43,0.00015095,2]
[353014587,1739485953886,-3680.29,0.00015095,2]
[353014588,1739485953896,-3113.41,0.00015095,2]
[353014589,1739485953906,-964.12,0.00015095,2]
[353014590,1739485953916,-1523.71,0.00015095,2]
[353014591,1739485953926,-525.45,0.00015095,2]
[353014592,1739485953936,-741.53,0.00015095,2]
[353014593,1739485953946,-2768.98,0.00015095,2]
[353014594,1739485953957,-1470.77,0.00015095,2]
[353014595,1739485953968,-3441.38,0.00015095,2]
[353014596,1739485953978,-4132.51,0.00015095,2]
[353014597,1739485953989,-1712.88,0.00015095,2]
[353014598,1739485953999,-4938.55,0.00015095,2]
[353014599,1739485954010,-2124.68,0.00015095,2]
[353014600,1739485954020,-1789.26,0.00015095,2]
[353014601,1739485954032,-1226.02,0.00015095,2]
[353014602,1739485954044,-1451.96,0.00015095,2]
[353014603,1739485954054,-824.05,0.00015095,2]
[353014604,1739485954064,-3558.23,0.00015095,2]
[353014605,1739485954075,-4167.53,0.00015095,2]
[353014606,1739485954085,-880.79,0.00015095,2]
[353014607,1739485954095,-1838.56,0.00015095,2]
[353014608,1739485954105,-1936.97,0.00015095,2]
[353014609,1739485954115,-2962.2,0.00015095,2]
[353014610,1739485954126,-598.78,0.00015095,2]
[353014611,1739485954137,-49722.63017509,0.000151,4]
[353014612,1739485954147,-146592.85071726,0.000151,3]
[353014613,1739485954158,-365324.85375133,0.000151,3]
[353014614,1739485954170,-2000.0,0.0001512,2]
[353014615,1739485954181,-1003.31441966,0.00015126,2]
[353014616,1739485954194,-3420.98,0.0001514,2]
[353014617,1739485954204,-166.69,0.00015168,2]
[353014618,1739485954214,-1124.476697,0.00015178,2]
[353014619,1739485954225,-1030.770305,0.00015178,2]
[353014620,1739485954235,-1369.077968,0.00015178,2]
[353014621,1739485954245,-169.21864319,0.00015178,2]
[353014622,1739485954256,-781.27,0.00015178,2]
[353014623,1739485954267,-640.12,0.00015178,2]
[353014624,1739485954277,-571.73,0.00015178,2]
[353014625,1739485954288,-767.83,0.00015178,2]
[353014626,1739485954298,-517.58,0.00015178,2]
[353014627,1739485954309,-748.33,0.00015178,2]
[353014628,1739485954320,-1019.36,0.00015178,2]
[353014629,1739485954331,-500.0,0.00015178,2]
[353014630,1739485954341,-536.11,0.00015178,2]
[353014631,1739485954352,-853.88,0.00015178,2]
[353014632,1739485954363,-500.0,0.00015178,2]
[353014633,1739485954374,-1237.75,0.00015178,2]
[353014634,1739485954385,-500.0,0.00015178,2]
[353014635,1739485954395,-823.6,0.00015178,2]
[353014636,1739485954406,-588.86,0.00015178,2]
[353014637,1739485954417,-583.03,0.00015178,2]
[353014638,1739485954427,-839.01,0.00015178,2]
[353014639,1739485954442,-632.18,0.00015178,2]
[353014640,1739485954452,-1100.34,0.00015178,2]
[353014641,1739485954463,-500.0,0.00015178,2]
[353014642,1739485954473,-907.89,0.00015178,2]
[353014643,1739485954483,-791.76,0.00015178,2]
[353014644,1739485954494,-500.0,0.00015178,2]
[353014645,1739485954504,-1002.52,0.00015178,2]
[353014646,1739485954514,-673.2,0.00015178,2]
[353014647,1739485954524,-864.99,0.00015178,2]
[353014648,1739485954534,-556.42,0.00015178,2]
[353014649,1739485954543,-606.37,0.00015178,2]
[353014650,1739485954554,-500.0,0.00015178,2]
[353014651,1739485954565,-500.0,0.00015178,2]
[353014652,1739485954574,-542.4,0.00015178,2]
[353014653,1739485954584,-500.0,0.00015178,2]
[353014654,1739485954594,-606.89,0.00015178,2]
[353014655,1739485954604,-551.03,0.00015178,2]
[353014656,1739485954614,-500.0,0.00015178,2]
[353014657,1739485954624,-571.58,0.00015178,2]
[353014658,1739485954634,-507.69,0.00015178,2]
[353014659,1739485954644,-500.0,0.00015178,2]
[353014660,1739485954654,-500.0,0.00015178,2]
[353014661,1739485954663,-608.74692153,0.00015178,2]
[353014662,1739485954674,-2208.67,0.00015178,2]
[353014663,1739485954686,-543.67,0.00015178,2]
[353014664,1739485954696,-653.16,0.00015178,2]
[353014665,1739485954707,-823.62,0.00015178,2]
[353014666,1739485954717,-638.54,0.00015178,2]
[353014667,1739485954728,-500.0,0.00015178,2]
[353014668,1739485954739,-1041.6,0.00015178,2]
[353014669,1739485954749,-2539.19,0.00015178,2]
[353014670,1739485954759,-500.0,0.00015178,2]
[353014671,1739485954769,-3052.42,0.00015178,2]
[353014672,1739485954779,-514.61,0.00015178,2]
[353014673,1739485954791,-1525.33,0.00015178,2]
[353014674,1739485954803,-867.43,0.00015178,2]
[353014675,1739485954813,-1400.14,0.00015178,2]
[353014676,1739485954825,-917.77,0.00015178,2]
[353014677,1739485954836,-1241.27,0.00015178,2]
[353014678,1739485954846,-991.55,0.00015178,2]
[353014679,1739485954856,-566.52,0.00015178,2]
[353014680,1739485954868,-500.0,0.00015178,2]
[353014681,1739485954877,-500.0,0.00015178,2]
[353014682,1739485954888,-500.0,0.00015178,2]
[353014683,1739485954899,-633.2,0.00015178,2]
[353014684,1739485954909,-717.52,0.00015178,2]
[353014685,1739485954919,-689.5,0.00015178,2]
[353014686,1739485954930,-965.58,0.00015178,2]
[353014687,1739485954942,-756.27,0.00015178,2]
[353014688,1739485954952,-687.68,0.00015178,2]
[353014689,1739485954962,-1501.09,0.00015178,2]
[353014690,1739485954972,-1669.58,0.00015178,2]
[353014691,1739485954983,-825.83,0.00015178,2]
[353014692,1739485954993,-1337.74,0.00015178,2]
[353014693,1739485955003,-1371.86,0.00015178,2]
[353014694,1739485955013,-500.0,0.00015178,2]
[353014695,1739485955024,-500.0,0.00015178,2]
[353014696,1739485955035,-1702.26,0.00015178,2]
[353014697,1739485955047,-500.0,0.00015178,2]
[353014698,1739485955057,-1754.49,0.00015178,2]
[353014699,1739485955067,-1078.61,0.00015178,2]
[353014700,1739485955078,-869.45,0.00015178,2]
[353014701,1739485955089,-1158.07,0.00015178,2]
[353014702,1739485955100,-320.80295368,0.00015178,2]
[353014703,1739485955111,-991.47,0.00015178,2]
[353014704,1739485955121,-1684.45,0.00015178,2]
[353014705,1739485955131,-526.8,0.00015178,2]
[353014706,1739485955141,-1302.35,0.00015178,2]
[353014707,1739485955151,-660.93,0.00015178,2]
[353014708,1739485955160,-854.62,0.00015178,2]
[353014709,1739485955170,-2012.26,0.00015178,2]
[353014710,1739485955180,-504.56,0.00015178,2]
[353014711,1739485955192,-763.9,0.00015178,2]
[353014712,1739485955202,-696.46,0.00015178,2]
[353014713,1739485955212,-835.17,0.00015178,2]
[353014714,1739485955222,-692.97,0.00015178,2]
[353014715,1739485955232,-566.32,0.00015178,2]
[353014716,1739485955242,-857.95,0.00015178,2]
[353014717,1739485955252,-2021.1,0.00015178,2]
[353014718,1739485955262,-702.16,0.00015178,2]
[353014719,1739485955272,-683.82,0.00015178,2]
[353014720,1739485955282,-1015.7,0.00015178,2]
[353014721,1739485955293,-713.38,0.00015178,2]
[353014722,1739485955303,-365.79,0.00015178,2]
[353014723,1739485955313,-1424.92,0.00015178,2]
[353014724,1739485955323,-617.76071853,0.00015178,2]
[353014725,1739485955334,-811.86,0.00015178,2]
[353014726,1739485955344,-988.11,0.00015178,2]
[353014727,1739485955354,-1906.79,0.00015178,2]
[353014728,1739485955365,-1427.42,0.00015178,2]
[353014729,1739485955375,-524.63,0.00015178,2]
[353014730,1739485955386,-500.0,0.00015178,2]
[353014731,1739485955396,-881.54,0.00015178,2]
[353014732,1739485955407,-865.9,0.00015178,2]
[353014733,1739485955417,-1372.61,0.00015178,2]
[353014734,1739485955428,-758.33,0.00015178,2]
[353014735,1739485955441,-1840.97,0.00015178,2]
[353014736,1739485955453,-1636.34,0.00015178,2]
[353014737,1739485955463,-1035.24,0.00015178,2]
[353014738,1739485955479,-1782.82,0.00015178,2]
[353014739,1739485955490,-557.25,0.00015178,2]
[353014740,1739485955501,-687.87,0.00015178,2]
[353014741,1739485955511,-888.74,0.00015178,2]
[353014742,1739485955522,-500.0,0.00015178,2]
[353014743,1739485955536,-1131.23,0.00015178,2]
[353014744,1739485955547,-548.09,0.00015178,2]
[353014745,1739485955558,-976.11,0.00015178,2]
[353014746,1739485955568,-1065.2,0.00015178,2]
[353014747,1739485955579,-1519.15,0.00015178,2]
[353014748,1739485955589,-825.94,0.00015178,2]
[353014749,1739485955600,-717.12,0.00015178,2]
[353014750,1739485955614,-718.5,0.00015178,2]
[353014751,1739485955624,-500.0,0.00015178,2]
[353014752,1739485955634,-1464.62,0.00015178,2]
[353014753,1739485955645,-1779.83,0.00015178,2]
[353014754,1739485955656,-551.0,0.00015178,2]
[353014755,1739485955667,-1813.74,0.00015178,2]
[353014756,1739485955678,-558.37,0.00015178,2]
[353014757,1739485955693,-807.26,0.00015178,2]
[353014758,1739485955704,-1306.72,0.00015178,2]
[353014759,1739485955714,-1123.76,0.00015178,2]
[353014760,1739485955724,-844.9,0.00015178,2]
[353014761,1739485955734,-2257.68,0.00015178,2]
[353014762,1739485955746,-831.33,0.00015178,2]
[353014763,1739485955963,-923.9,0.00015178,2]
[353014764,1739485955973,-500.0,0.00015178,2]
[353014765,1739485955983,-1270.71,0.00015178,2]
[353014766,1739485955993,-897.69,0.00015178,2]
[353014767,1739485956003,-853.17,0.00015178,2]
[353014768,1739485956013,-840.31,0.00015178,2]
[353014769,1739485956023,-1705.94,0.00015178,2]
[353014770,1739485956036,-876.71,0.00015178,2]
[353014771,1739485956046,-885.91,0.00015178,2]
[353014772,1739485956056,-500.0,0.00015178,2]
[353014773,1739485956067,-2161.09,0.00015178,2]
[353014774,1739485956079,-458.37394501,0.00015178,2]
[353014775,1739485956089,-3040.0,0.00015178,2]
[353014776,1739485956099,-1238.79,0.00015178,2]
[353014777,1739485956109,-1105.8,0.00015178,2]
[353014778,1739485956119,-2265.19,0.00015178,2]
[353014779,1739485956130,-1322.86,0.00015178,2]
[353014780,1739485956140,-906.34,0.00015178,2]
[353014781,1739485956150,-523.6,0.00015178,2]
[353014782,1739485956159,-646.18,0.00015178,2]
[353014783,1739485956170,-893.53,0.00015178,2]
[353014784,1739485956179,-970.55,0.00015178,2]
[353014785,1739485956191,-702.31,0.00015178,2]
[353014786,1739485956200,-553.1,0.00015178,2]
[353014787,1739485956210,-2482.92,0.00015178,2]
[353014788,1739485956220,-858.18,0.00015178,2]
[353014789,1739485956231,-710.97,0.00015178,2]
[353014790,1739485956241,-669.76,0.00015178,2]
[353014791,1739485956251,-1892.5,0.00015178,2]
[353014792,1739485956261,-739.26,0.00015178,2]
[353014793,1739485956270,-1559.26,0.00015178,2]
[353014794,1739485956280,-1326.07,0.00015178,2]
[353014795,1739485956289,-602.38,0.00015178,2]
[353014796,1739485956300,-835.99,0.00015178,2]
[353014797,1739485956310,-1789.82,0.00015178,2]
[353014798,1739485956320,-237.06890068,0.00015178,2]
[353014799,1739485956331,-1318.31,0.00015178,2]
[353014800,1739485956341,-551.86,0.00015178,2]
[353014801,1739485956351,-864.67,0.00015178,2]
[353014802,1739485956360,-500.0,0.00015178,2]
[353014803,1739485956370,-1141.82,0.00015178,2]
[353014804,1739485956380,-1994.16,0.00015178,2]
[353014805,1739485956389,-812.11,0.00015178,2]
[353014806,1739485956399,-859.06,0.00015178,2]
[353014807,1739485956409,-1079.19,0.00015178,2]
[353014808,1739485956419,-1941.15,0.00015178,2]
[353014809,1739485956428,-2409.32,0.00015178,2]
[353014810,1739485956439,-592.63,0.00015178,2]
[353014811,1739485956448,-900.38,0.00015178,2]
[353014812,1739485956458,-1741.64,0.00015178,2]
[353014813,1739485956469,-1010.42,0.00015178,2]
[353014814,1739485956479,-1201.88,0.00015178,2]
[353014815,1739485956489,-730.65,0.00015178,2]
[353014816,1739485956499,-2964.55,0.00015178,2]
[353014817,1739485956509,-645.62,0.00015178,2]
[353014818,1739485956519,-1693.27,0.00015178,2]
[353014819,1739485956529,-765.27,0.00015178,2]
[353014820,1739485956538,-1023.18,0.00015178,2]
[353014821,1739485956549,-1983.35,0.00015178,2]
[353014822,1739485956558,-1199.21,0.00015178,2]
[353014823,1739485956568,-1991.14,0.00015178,2]
[353014824,1739485956578,-533.09,0.00015178,2]
[353014825,1739485956588,-500.0,0.00015178,2]
[353014826,1739485956598,-4281.75,0.00015178,2]
[353014827,1739485956607,-2700.69,0.00015178,2]
[353014828,1739485956617,-1072.56,0.00015178,2]
[353014829,1739485956627,-2181.51,0.00015178,2]
[353014830,1739485956636,-2105.12,0.00015178,2]
[353014831,1739485956646,-2362.29,0.00015178,2]
[353014832,1739485956656,-797.65,0.00015178,2]
[353014833,1739485956666,-1372.43,0.00015178,2]
[353014834,1739485956676,-500.0,0.00015178,2]
[353014835,1739485956687,-2270.27,0.00015178,2]
[353014836,1739485956696,-701.26,0.00015178,2]
[353014837,1739485956706,-1635.6,0.00015178,2]
[353014838,1739485956716,-1210.46,0.00015178,2]
[353014839,1739485956726,-1551.99,0.00015178,2]
[353014840,1739485956735,-4033.58,0.00015178,2]
[353014841,1739485956745,-2766.93,0.00015178,2]
[353014842,1739485956754,-2765.04,0.00015178,2]
[353014843,1739485956764,-660.75,0.00015178,2]
[353014844,1739485956773,-2103.7,0.00015178,2]
[353014845,1739485956783,-924.48,0.00015178,2]
[353014846,1739485956792,-794.33,0.00015178,2]
[353014847,1739485956802,-1140.21,0.00015178,2]
[353014848,1739485956812,-1374.92,0.00015178,2]
[353014849,1739485956821,-500.0,0.00015178,2]
[353014850,1739485956831,-1394.91,0.00015178,2]
[353014851,1739485956840,-2230.12,0.00015178,2]
[353014852,1739485956850,-500.0,0.00015178,2]
[353014853,1739485956860,-878.31,0.00015178,2]
[353014854,1739485956870,-1071.07,0.00015178,2]
[353014855,1739485956880,-3342.84,0.00015178,2]
[353014856,1739485956890,-1308.38,0.00015178,2]
[353014857,1739485956900,-683.58,0.00015178,2]
[353014858,1739485956911,-3531.08,0.00015178,2]
[353014859,1739485956922,-1653.81,0.00015178,2]
[353014860,1739485956934,-553.67,0.00015178,2]
[353014861,1739485956944,-988.77,0.00015178,2]
[353014862,1739485956954,-2226.29,0.00015178,2]
[353014863,1739485956964,-1807.21,0.00015178,2]
[353014864,1739485956974,-969.77,0.00015178,2]
[353014865,1739485956983,-500.0,0.00015178,2]
[353014866,1739485956993,-3314.33,0.00015178,2]
[353014867,1739485957003,-1796.12,0.00015178,2]
[353014868,1739485957013,-3189.0,0.00015178,2]
[353014869,1739485957023,-803.11,0.00015178,2]
[353014870,1739485957033,-607.85,0.00015178,2]
[353014871,1739485957043,-761.91,0.00015178,2]
[353014872,1739485957053,-621.21,0.00015178,2]
[353014873,1739485957062,-1972.85,0.00015178,2]
[353014874,1739485957071,-3990.94,0.00015178,2]
[353014875,1739485957082,-523.93,0.00015178,2]
[353014876,1739485957092,-719.42,0.00015178,2]
[353014877,1739485957101,-749.77,0.00015178,2]
[353014878,1739485957111,-1753.67,0.00015178,2]
[353014879,1739485957121,-2497.17,0.00015178,2]
[353014880,1739485957131,-500.0,0.00015178,2]
[353014881,1739485957140,-1325.27,0.00015178,2]
[353014882,1739485957149,-3120.71,0.00015178,2]
[353014883,1739485957158,-511.69,0.00015178,2]
[353014884,1739485957169,-3912.39,0.00015178,2]
[353014885,1739485957179,-635.38,0.00015178,2]
[353014886,1739485957191,-1203.12,0.00015178,2]
[353014887,1739485957200,-1628.89,0.00015178,2]
[353014888,1739485957211,-1174.26,0.00015178,2]
[353014889,1739485957220,-5014.48,0.00015178,2]
[353014890,1739485957230,-591.53,0.00015178,2]
[353014891,1739485957239,-2834.89,0.00015178,2]
[353014892,1739485957249,-1129.98,0.00015178,2]
[353014893,1739485957258,-4012.08,0.00015178,2]
[353014894,1739485957267,-1877.06,0.00015178,2]
[353014895,1739485957277,-2305.18,0.00015178,2]
[353014896,1739485957287,-3400.07,0.00015178,2]
[353014897,1739485957296,-1278.06,0.00015178,2]
[353014898,1739485957305,-2677.19,0.00015178,2]
[353014899,1739485957315,-2091.53,0.00015178,2]
[353014900,1739485957324,-10601.94,0.00015178,2]
[353014901,1739485957334,-6319.86,0.00015178,2]
[353014902,1739485957343,-1914.19,0.00015178,2]
[353014903,1739485957353,-2222.28,0.00015178,2]
[353014904,1739485957362,-1244.36,0.00015178,2]
[353014905,1739485957372,-2434.73,0.00015178,2]
[353014906,1739485957381,-1301.75,0.00015178,2]
[353014907,1739485957390,-3378.69,0.00015178,2]
[353014908,1739485957399,-1073.98,0.00015178,2]
[353014909,1739485957408,-500.0,0.00015178,2]
[353014910,1739485957418,-1003.25,0.00015178,2]
[353014911,1739485957427,-1894.84,0.00015178,2]
[353014912,1739485957438,-3213.97,0.00015178,2]
[353014913,1739485957447,-1618.51,0.00015178,2]
[353014914,1739485957457,-3027.83,0.00015178,2]
[353014915,1739485957467,-1463.57,0.00015178,2]
[353014916,1739485957477,-1866.04,0.00015178,2]
[353014917,1739485957486,-551.57,0.00015178,2]
[353014918,1739485957495,-3405.09,0.00015178,2]
[353014919,1739485957505,-3794.0,0.00015178,2]
[353014920,1739485957515,-3558.25,0.00015178,2]
[353014921,1739485957524,-5141.78,0.00015178,2]
[353014922,1739485957534,-1199.38,0.00015178,2]
[353014923,1739485957543,-5036.58,0.00015178,2]
[353014924,1739485957553,-972.02,0.00015178,2]
[353014925,1739485957562,-1457.37,0.00015178,2]
[353014926,1739485957571,-1646.26,0.00015178,2]
[353014927,1739485957580,-1023.76,0.00015178,2]
[353014928,1739485957590,-4943.34,0.00015178,2]
[353014929,1739485957610,-973.76,0.00015178,2]
[353014930,1739485957621,-1078.92,0.00015178,2]
[353014931,1739485957630,-3488.7,0.00015178,2]
[353014932,1739485957640,-9947.08,0.00015178,2]
[353014933,1739485957650,-1167.35,0.00015178,2]
[353014934,1739485957659,-1925.44,0.00015178,2]
[353014935,1739485957670,-3871.01,0.00015178,2]
[353014936,1739485957680,-3374.31,0.00015178,2]
[353014937,1739485957692,-3262.34,0.00015178,2]
[353014938,1739485957702,-3751.7,0.00015178,2]
[353014939,1739485957712,-2216.47,0.00015178,2]
[353014940,1739485957722,-500.0,0.00015178,2]
[353014941,1739485957732,-500.0,0.00015178,2]
[353014942,1739485957743,-2198.57,0.00015178,2]
[353014943,1739485957753,-1272.94,0.00015178,2]
[353014944,1739485957763,-3047.23,0.00015178,2]
[353014945,1739485957772,-4282.13,0.00015178,2]
[353014946,1739485957783,-1579.29,0.00015178,2]
[353014947,1739485957792,-2262.09,0.00015178,2]
[353014948,1739485957802,-2034.1,0.00015178,2]
[353014949,1739485957812,-4796.16,0.00015178,2]
[353014950,1739485957822,-621.58,0.00015178,2]
[353014951,1739485957832,-4188.27,0.00015178,2]
[353014952,1739485957841,-2900.35,0.00015178,2]
[353014953,1739485957851,-5302.96,0.00015178,2]
[353014954,1739485957861,-3352.12,0.00015178,2]
[353014955,1739485957870,-525.01,0.00015178,2]
[353014956,1739485957879,-2517.29,0.00015178,2]
[353014957,1739485957888,-3510.5,0.00015178,2]
[353014958,1739485957898,-1911.76,0.00015178,2]
[353014959,1739485957907,-3186.25,0.00015178,2]
[353014960,1739485957918,-1411.53,0.00015178,2]
[353014961,1739485957928,-5245.34,0.00015178,2]
[353014962,1739485957941,-4040.71,0.00015178,2]
[353014963,1739485957951,-2434.4,0.00015178,2]
[353014964,1739485957960,-3997.95,0.00015178,2]
[353014965,1739485957970,-797.43,0.00015178,2]
[353014966,1739485957980,-3418.06,0.00015178,2]
[353014967,1739485957990,-3613.39,0.00015178,2]
[353014968,1739485958000,-566.64,0.00015178,2]
[353014969,1739485958010,-8838.73,0.00015178,2]
[353014970,1739485958020,-720.74,0.00015178,2]
[353014971,1739485958031,-624.99,0.00015178,2]
[353014972,1739485958044,-3533.94,0.00015178,2]
[353014973,1739485958054,-3776.32,0.00015178,2]
[353014974,1739485958064,-522.13,0.00015178,2]
[353014975,1739485958075,-4171.69,0.00015178,2]
[353014976,1739485958085,-2767.11,0.00015178,2]
[353014977,1739485958094,-500.0,0.00015178,2]
[353014978,1739485958103,-1300.63,0.00015178,2]
[353014979,1739485958113,-3523.18,0.00015178,2]
[353014980,1739485958122,-4629.45,0.00015178,2]
[353014981,1739485958132,-2317.93,0.00015178,2]
[353014982,1739485958142,-542.74,0.00015178,2]
[353014983,1739485958151,-6501.79,0.00015178,2]
[353014984,1739485958161,-649.96,0.00015178,2]
[353014985,1739485958171,-2852.77,0.00015178,2]
[353014986,1739485958180,-4468.57,0.00015178,2]
[353014987,1739485958193,-773.78,0.00015178,2]
[353014988,1739485958203,-724.47,0.00015178,2]
[353014989,1739485958214,-2513.38,0.00015178,2]
[353014990,1739485958223,-4071.43,0.00015178,2]
[353014991,1739485958232,-3680.29,0.00015178,2]
[353014992,1739485958242,-3113.41,0.00015178,2]
[353014993,1739485958252,-964.12,0.00015178,2]
[353014994,1739485958262,-1523.71,0.00015178,2]
[353014995,1739485958271,-741.53,0.00015178,2]
[353014996,1739485958281,-525.45,0.00015178,2]
[353014997,1739485958290,-2768.98,0.00015178,2]
[353014998,1739485958299,-1470.77,0.00015178,2]
[353014999,1739485958310,-3441.38,0.00015178,2]
[353015000,1739485958319,-4132.51,0.00015178,2]
[353015001,1739485958507,-1712.88,0.00015178,2]
[353015002,1739485958516,-4938.55,0.00015178,2]
[353015003,1739485958527,-2124.68,0.00015178,2]
[353015004,1739485958536,-1789.26,0.00015178,2]
[353015005,1739485958546,-1226.02,0.00015178,2]
[353015006,1739485958555,-1451.96,0.00015178,2]
[353015007,1739485958565,-824.05,0.00015178,2]
[353015008,1739485958574,-3558.23,0.00015178,2]
[353015009,1739485958584,-4167.53,0.00015178,2]
[353015010,1739485958593,-880.79,0.00015178,2]
[353015011,1739485958603,-1838.56,0.00015178,2]
[353015012,1739485958612,-1936.97,0.00015178,2]
[353015013,1739485958622,-2962.2,0.00015178,2]
[353015014,1739485958632,-598.78,0.00015178,2]
[353015015,1739485958641,-202.0,0.0001518,2]
[353015016,1739485958651,-299.0,0.000152,2]
[353015017,1739485958660,-171.409911,0.00015232,2]
[353015018,1739485958670,-173.821041,0.00015232,2]
[353015019,1739485958679,-205.0,0.0001524,2]
[353015020,1739485958689,-152.0,0.00015257,5]
[353015021,1739485958699,-1124.476697,0.0001526,2]
[353015022,1739485958708,-1030.770305,0.0001526,2]
[353015023,1739485958718,-1369.077968,0.0001526,2]
[353015024,1739485958727,-781.27,0.0001526,2]
[353015025,1739485958736,-640.12,0.0001526,2]
[353015026,1739485958745,-571.73,0.0001526,2]
[353015027,1739485958754,-767.83,0.0001526,2]
[353015028,1739485958763,-180.22099247,0.0001526,2]
[353015029,1739485958773,-517.58,0.0001526,2]
[353015030,1739485958782,-748.33,0.0001526,2]
[353015031,1739485958791,-1019.36,0.0001526,2]
[353015032,1739485958801,-500.0,0.0001526,2]
[353015033,1739485958810,-536.11,0.0001526,2]
[353015034,1739485958821,-853.88,0.0001526,2]
[353015035,1739485958831,-500.0,0.0001526,2]
[353015036,1739485958840,-1237.75,0.0001526,2]
[353015037,1739485958849,-500.0,0.0001526,2]
[353015038,1739485958858,-823.6,0.0001526,2]
[353015039,1739485958866,-588.86,0.0001526,2]
[353015040,1739485958875,-583.03,0.0001526,2]